fUSD/lending_fUSD_20250606
["ID","MTS","AMOUNT","RATE_DAILY","PERIOD"]
[364800091,1749245465542,-530.91750665,0.00028273,5]
[364800092,1749245465551,-500.0,0.00028273,5]
[364800093,1749245465560,-500.0,0.00028273,5]
[364800094,1749245465569,-395.74451207,0.00028273,5]
[364800095,1749245465579,-150.0,0.00028273,5]
[364800096,1749245465588,-150.0,0.00028273,5]
[364800097,1749245465597,-150.0,0.00028273,5]
[364800098,1749245465606,-500.0,0.00028273,5]
[364800099,1749245465615,-150.0,0.00028273,5]
[364800100,1749245465624,-150.0,0.00028273,5]
[364800101,1749245465634,-500.0,0.00028273,5]
[364800102,1749245465645,-461.51976516,0.00028273,5]
[364800103,1749245465654,-486.07300312,0.00028273,5]
[364800104,1749245465663,-500.0,0.00028273,5]
[364800105,1749245465673,-500.0,0.00028273,5]
[364800106,1749245465683,-500.0,0.00028273,5]
[364800107,1749245465693,-204.34173649,0.00028273,5]
[364800108,1749245465703,-158.57695402,0.00028273,5]
[364800109,1749245465712,-500.0,0.00028273,5]
[364800110,1749245465722,-500.0,0.00028273,5]
[364800111,1749245465731,-1332.0,0.00028273,5]
[364800112,1749245465741,-500.0,0.00028273,5]
[364800113,1749245465751,-448.0,0.00028273,5]
[364800114,1749245465761,-500.0,0.00028273,2]
[364800115,1749245465771,-500.0,0.00028273,5]
[364800116,1749245465780,-500.0,0.00028273,2]
[364800117,1749245465789,-1966.0,0.00028273,5]
[364800118,1749245465799,-200.0,0.00028273,5]
[364800119,1749245465808,-500.0,0.00028273,5]
[364800120,1749245465817,-769.37504606,0.00028274,30]
[364800121,1749245465828,-500.0,0.000283,2]
[364800122,1749245465837,-376.0,0.000283,2]
[364800123,1749245465846,-961.0,0.000283,2]
[364800124,1749245465856,-200.0,0.000283,2]
[364800125,1749245465865,-407.82896973,0.00028301,5]
[364800126,1749245465874,-150.0,0.00028301,5]
[364800127,1749245465883,-153.7544645,0.00028301,5]
[364800128,1749245465893,-150.0,0.00028301,5]
[364800129,1749245465902,-290.02106427,0.00028301,5]
[364800130,1749245465911,-150.0,0.00028301,5]
[364800131,1749245465920,-264.89034803,0.00028301,5]
[364800132,1749245465932,-500.0,0.00028301,5]
[364800133,1749245465941,-500.0,0.00028301,5]
[364800134,1749245465950,-500.0,0.00028301,5]
[364800135,1749245465959,-500.0,0.00028301,5]
[364800136,1749245465969,-500.0,0.00028301,5]
[364800137,1749245465978,-500.0,0.00028301,5]
[364800138,1749245465988,-1332.0,0.00028301,5]
[364800139,1749245465998,-150.0,0.00028301,5]
[364800140,1749245466008,-448.0,0.00028301,5]
[364800141,1749245466020,-500.0,0.00028301,2]
[364800142,1749245466030,-152.85040679,0.00028301,5]
[364800143,1749245466041,-500.0,0.00028301,2]
[364800144,1749245466051,-1966.0,0.00028301,5]
[364800145,1749245466060,-500.0,0.00028301,5]
[364800146,1749245466069,-299.223605,0.00028308,7]
[364800147,1749245466079,-151.0,0.00028308,7]
[364800148,1749245466089,-151.0,0.00028308,7]
[364800149,1749245466098,-151.0,0.00028308,7]
[364800150,1749245466107,-151.0,0.00028308,7]
[364800151,1749245466117,-151.0,0.00028308,7]
[364800152,1749245466127,-151.0,0.00028308,7]
[364800153,1749245466136,-151.0,0.00028308,7]
[364800154,1749245466145,-151.0,0.00028308,7]
[364800155,1749245466154,-151.0,0.00028308,7]
[364800156,1749245466163,-319.967778,0.00028308,7]
[364800157,1749245466172,-319.967778,0.00028308,7]
[364800158,1749245466182,-289.34799,0.00028308,7]
[364800159,1749245466191,-289.34799,0.00028308,7]
[364800160,1749245466201,-151.0,0.00028308,7]
[364800161,1749245466210,-196.43125565,0.00028328,5]
[364800162,1749245466219,-169.45071894,0.00028328,5]
[364800163,1749245466229,-176.51934188,0.00028328,5]
[364800164,1749245466239,-500.0,0.00028328,5]
[364800165,1749245466247,-500.0,0.00028328,5]
[364800166,1749245466257,-500.0,0.00028328,5]
[364800167,1749245466266,-500.0,0.00028328,5]
[364800168,1749245466276,-500.0,0.00028328,5]
[364800169,1749245466285,-500.0,0.00028328,5]
[364800170,1749245466294,-1332.0,0.00028328,5]
[364800171,1749245466305,-448.0,0.00028328,5]
[364800172,1749245466315,-500.0,0.00028328,2]
[364800173,1749245466325,-500.0,0.00028328,2]
[364800174,1749245466335,-1966.0,0.00028328,5]
[364800175,1749245466345,-500.0,0.00028328,5]
[364800176,1749245466354,-151.0,0.00028328,7]
[364800177,1749245466363,-189.821405,0.00028328,7]
[364800178,1749245466373,-151.0,0.00028328,7]
[364800179,1749245466382,-151.0,0.00028328,7]
[364800180,1749245466392,-151.0,0.00028328,7]
[364800181,1749245466402,-150.0,0.00028339,2]
[364800182,1749245466411,-4000.0,0.00028349,4]
[364800183,1749245466422,-250.0,0.00028355,5]
[364800184,1749245466431,-500.0,0.00028355,5]
[364800185,1749245466440,-500.0,0.00028355,5]
[364800186,1749245466450,-500.0,0.00028355,5]
[364800187,1749245466459,-350.0,0.00028355,5]
[364800188,1749245466469,-500.0,0.00028355,5]
[364800189,1749245466478,-1332.0,0.00028355,5]
[364800190,1749245466488,-448.0,0.00028355,5]
[364800191,1749245466498,-500.0,0.00028355,2]
[364800192,1749245466508,-500.0,0.00028355,2]
[364800193,1749245466517,-1966.0,0.00028355,5]
[364800194,1749245466527,-500.0,0.00028355,5]
[364800195,1749245466537,-390.27346316,0.0002836,2]
[364800196,1749245466546,-500.0,0.0002837,2]
[364800197,1749245466556,-151.0,0.00028373,7]
[364800198,1749245466567,-229.196697,0.00028373,7]
[364800199,1749245466577,-229.196697,0.00028373,7]
[364800200,1749245466587,-500.0,0.00028383,5]
[364800201,1749245466596,-500.0,0.00028383,5]
[364800202,1749245466605,-500.0,0.00028383,5]
[364800203,1749245466616,-500.0,0.00028383,5]
[364800204,1749245466626,-1332.0,0.00028383,5]
[364800205,1749245466636,-448.0,0.00028383,5]
[364800206,1749245466647,-500.0,0.00028383,2]
[364800207,1749245466657,-500.0,0.00028383,2]
[364800208,1749245466668,-1966.0,0.00028383,5]
[364800209,1749245466678,-500.0,0.00028383,5]
[364800210,1749245466688,-480.0,0.00028383,5]
[364800211,1749245466697,-480.0,0.00028383,5]
[364800212,1749245466706,-151.0,0.00028383,7]
[364800213,1749245466717,-480.0,0.00028383,5]
[364800214,1749245466726,-151.0,0.00028383,7]
[364800215,1749245466735,-651.31,0.00028383,5]
[364800216,1749245466747,-151.0,0.00028383,7]
[364800217,1749245466757,-480.0,0.00028383,5]
[364800218,1749245466766,-483.33,0.00028383,5]
[364800219,1749245466776,-151.0,0.00028383,7]
[364800220,1749245466786,-538.52,0.00028383,5]
[364800221,1749245466795,-480.0,0.00028383,5]
[364800222,1749245466805,-480.0,0.00028383,2]
[364800223,1749245466814,-480.0,0.00028383,5]
[364800224,1749245466824,-480.0,0.00028383,5]
[364800225,1749245466833,-151.0,0.00028383,7]
[364800226,1749245466843,-685.83,0.00028383,5]
[364800227,1749245466853,-151.0,0.00028383,7]
[364800228,1749245466862,-256.662872,0.00028383,7]
[364800229,1749245466872,-249.09506857,0.00028383,5]
[364800230,1749245466881,-151.0,0.00028383,7]
[364800231,1749245466891,-480.0,0.00028383,5]
[364800232,1749245466900,-549.23,0.00028383,5]
[364800233,1749245466910,-500.02,0.00028383,5]
[364800234,1749245466920,-480.0,0.00028383,5]
[364800235,1749245466932,-619.23,0.00028383,5]
[364800236,1749245466943,-480.0,0.00028383,5]
[364800237,1749245466953,-151.0,0.00028383,7]
[364800238,1749245466963,-538.98,0.00028383,5]
[364800239,1749245466973,-480.0,0.00028383,5]
[364800240,1749245466983,-516.51,0.00028383,5]
[364800241,1749245466993,-480.0,0.00028383,5]
[364800242,1749245467003,-480.0,0.00028383,5]
[364800243,1749245467016,-480.0,0.00028383,5]
[364800244,1749245467026,-508.36,0.00028383,5]
[364800245,1749245467036,-480.0,0.00028383,5]
[364800246,1749245467046,-594.92,0.00028383,5]
[364800247,1749245467056,-480.0,0.00028383,5]
[364800248,1749245467067,-655.89,0.00028383,5]
[364800249,1749245467076,-480.0,0.00028383,5]
[364800250,1749245467087,-480.0,0.00028383,5]
[364800251,1749245467099,-533.19,0.00028383,5]
[364800252,1749245467108,-480.0,0.00028383,5]
[364800253,1749245467120,-508.07,0.00028383,5]
[364800254,1749245467130,-213.100659,0.00028383,7]
[364800255,1749245467140,-480.0,0.00028383,5]
[364800256,1749245467149,-504.81,0.00028383,5]
[364800257,1749245467159,-213.100659,0.00028383,7]
[364800258,1749245467169,-480.0,0.00028383,5]
[364800259,1749245467178,-480.0,0.00028383,5]
[364800260,1749245467188,-480.0,0.00028383,5]
[364800261,1749245467198,-556.66,0.00028383,5]
[364800262,1749245467207,-196.471791,0.00028383,7]
[364800263,1749245467217,-656.61,0.00028383,5]
[364800264,1749245467226,-480.0,0.00028383,5]
[364800265,1749245467236,-196.471791,0.00028383,7]
[364800266,1749245467246,-480.0,0.00028383,5]
[364800267,1749245467256,-480.0,0.00028383,5]
[364800268,1749245467265,-880.83,0.00028383,5]
[364800269,1749245467275,-151.611789,0.00028383,7]
[364800270,1749245467284,-1046.06,0.00028383,5]
[364800271,1749245467294,-571.800087,0.00028383,5]
[364800272,1749245467304,-480.0,0.00028383,5]
[364800273,1749245467314,-480.0,0.00028383,5]
[364800274,1749245467324,-480.0,0.00028383,5]
[364800275,1749245467335,-480.0,0.00028383,5]
[364800276,1749245467346,-151.0,0.00028383,7]
[364800277,1749245467356,-151.651746,0.00028383,7]
[364800278,1749245467366,-480.0,0.00028383,5]
[364800279,1749245467376,-480.0,0.00028383,5]
[364800280,1749245467387,-559.351977,0.00028383,5]
[364800281,1749245467397,-480.0,0.00028383,5]
[364800282,1749245467408,-636.86,0.00028383,5]
[364800283,1749245467417,-492.47,0.00028383,5]
[364800284,1749245467427,-151.0,0.00028383,7]
[364800285,1749245467436,-480.0,0.00028383,5]
[364800286,1749245467446,-527.03,0.00028383,5]
[364800287,1749245467457,-527.07,0.00028383,5]
[364800288,1749245467467,-480.0,0.00028383,5]
[364800289,1749245467477,-829.98,0.00028383,5]
[364800290,1749245467487,-480.0,0.00028383,5]
[364800291,1749245467497,-480.0,0.00028383,5]
[364800292,1749245467507,-480.0,0.00028383,5]
[364800293,1749245467517,-492.47,0.00028383,5]
[364800294,1749245467529,-151.0,0.00028383,7]
[364800295,1749245467541,-480.0,0.00028383,5]
[364800296,1749245467551,-523.07,0.00028383,5]
[364800297,1749245467561,-151.0,0.00028383,7]
[364800298,1749245467571,-480.0,0.00028383,5]
[364800299,1749245467581,-480.0,0.00028383,5]
[364800300,1749245467591,-480.0,0.00028383,5]
[364800301,1749245467601,-480.0,0.00028383,5]
[364800302,1749245467611,-800.29,0.00028383,5]
[364800303,1749245467621,-480.0,0.00028383,5]
[364800304,1749245467631,-480.0,0.00028383,5]
[364800305,1749245467641,-480.0,0.00028383,5]
[364800306,1749245467651,-702.95,0.00028383,5]
[364800307,1749245467661,-359.3,0.00028383,5]
[364800308,1749245467671,-434.909736,0.00028383,7]
[364800309,1749245467681,-771.000696,0.00028383,5]
[364800310,1749245467691,-480.0,0.00028383,5]
[364800311,1749245467701,-434.909736,0.00028383,7]
[364800312,1749245467711,-480.0,0.00028383,5]
[364800313,1749245467722,-480.0,0.00028383,5]
[364800314,1749245467732,-5472.06,0.00028383,5]
[364800315,1749245467742,-1065.447344,0.00028383,5]
[364800316,1749245467753,-2440.57,0.00028383,5]
[364800317,1749245467763,-1814.61,0.00028383,5]
[364800318,1749245467774,-480.0,0.00028383,5]
[364800319,1749245467784,-5858.97,0.00028383,5]
[364800320,1749245467794,-2363.07,0.00028383,5]
[364800321,1749245467804,-1000.0,0.00028383,2]
[364800322,1749245467814,-480.0,0.00028383,5]
[364800323,1749245467824,-585.97,0.00028383,5]
[364800324,1749245467834,-480.0,0.00028383,5]
[364800325,1749245467844,-659.35,0.00028383,5]
[364800326,1749245467853,-480.0,0.00028383,5]
[364800327,1749245467863,-1396.08,0.00028383,5]
[364800328,1749245467873,-642.87,0.00028383,5]
[364800329,1749245467883,-941.0,0.00028383,5]
[364800330,1749245467893,-1168.575528,0.00028383,5]
[364800331,1749245467902,-900.91,0.00028383,5]
[364800332,1749245467912,-843.14,0.00028383,5]
[364800333,1749245467923,-506.99,0.00028383,5]
[364800334,1749245467934,-10746.06,0.00028383,5]
[364800335,1749245467944,-1353.33,0.00028383,5]
[364800336,1749245467953,-480.0,0.00028383,5]
[364800337,1749245467963,-480.0,0.00028383,5]
[364800338,1749245467973,-1533.93,0.00028383,5]
[364800339,1749245467983,-1127.16,0.00028383,5]
[364800340,1749245467994,-1096.57,0.00028383,5]
[364800341,1749245468005,-638.2,0.00028383,5]
[364800342,1749245468018,-2733.98,0.00028383,5]
[364800343,1749245468028,-1416.92,0.00028383,5]
[364800344,1749245468038,-1292.067761,0.00028383,5]
[364800345,1749245468049,-1360.31,0.00028383,5]
[364800346,1749245468060,-868.83,0.00028383,5]
[364800347,1749245468071,-2950.26,0.00028383,5]
[364800348,1749245468081,-731.97,0.00028383,5]
[364800349,1749245468091,-1184.81,0.00028383,5]
[364800350,1749245468101,-1342.0,0.00028383,5]
[364800351,1749245468111,-480.0,0.00028383,5]
[364800352,1749245468122,-731.22,0.00028383,5]
[364800353,1749245468131,-1139.52,0.00028383,5]
[364800354,1749245468142,-2337.68,0.00028383,5]
[364800355,1749245468152,-480.0,0.00028383,5]
[364800356,1749245468162,-480.0,0.00028383,5]
[364800357,1749245468173,-1831.6,0.00028383,5]
[364800358,1749245468183,-763.29,0.00028383,5]
[364800359,1749245468194,-1132.32,0.00028383,5]
[364800360,1749245468203,-3008.51,0.00028383,5]
[364800361,1749245468214,-2113.05,0.00028383,5]
[364800362,1749245468224,-480.0,0.00028383,5]
[364800363,1749245468233,-862.65,0.00028383,5]
[364800364,1749245468244,-480.0,0.00028383,5]
[364800365,1749245468255,-2923.97,0.00028383,5]
[364800366,1749245468265,-1453.13,0.00028383,5]
[364800367,1749245468274,-4156.92,0.00028383,5]
[364800368,1749245468284,-480.0,0.00028383,5]
[364800369,1749245468294,-1274.65,0.00028383,5]
[364800370,1749245468303,-1332.06,0.00028383,5]
[364800371,1749245468313,-677.14666,0.00028383,5]
[364800372,1749245468323,-1082.7,0.00028383,5]
[364800373,1749245468333,-480.0,0.00028383,5]
[364800374,1749245468342,-1025.06,0.00028383,5]
[364800375,1749245468352,-480.0,0.00028383,5]
[364800376,1749245468362,-1551.16,0.00028383,5]
[364800377,1749245468372,-1882.05,0.00028383,5]
[364800378,1749245468382,-951.78,0.00028383,5]
[364800379,1749245468392,-598.87,0.00028383,5]
[364800380,1749245468401,-480.0,0.00028383,5]
[364800381,1749245468411,-480.0,0.00028383,5]
[364800382,1749245468421,-1613.93,0.00028383,5]
[364800383,1749245468431,-817.65,0.00028383,5]
[364800384,1749245468440,-3420.12,0.00028383,5]
[364800385,1749245468450,-480.0,0.00028383,5]
[364800386,1749245468460,-603.979676,0.00028383,5]
[364800387,1749245468469,-1779.32,0.00028383,5]
[364800388,1749245468479,-4369.27,0.00028383,5]
[364800389,1749245468489,-1294.16,0.00028383,5]
[364800390,1749245468498,-1215.8,0.00028383,5]
[364800391,1749245468508,-1228.33,0.00028383,5]
[364800392,1749245468517,-632.6,0.00028383,5]
[364800393,1749245468526,-480.0,0.00028383,5]
[364800394,1749245468535,-480.0,0.00028383,5]
[364800395,1749245468545,-1300.84,0.00028383,5]
[364800396,1749245468554,-692.3,0.00028383,5]
[364800397,1749245468564,-12112.58,0.00028383,5]
[364800398,1749245468573,-497.69,0.00028383,5]
[364800399,1749245468583,-683.2,0.00028383,5]
[364800400,1749245468592,-1266.65,0.00028383,5]
[364800401,1749245468602,-480.0,0.00028383,5]
[364800402,1749245468612,-705.09,0.00028383,5]
[364800403,1749245468622,-4732.68,0.00028383,5]
[364800404,1749245468632,-717.45,0.00028383,5]
[364800405,1749245468642,-501.63,0.00028383,5]
[364800406,1749245468651,-974.5,0.00028383,5]
[364800407,1749245468661,-4416.75,0.00028383,5]
[364800408,1749245468670,-1656.72,0.00028383,5]
[364800409,1749245468679,-480.0,0.00028383,5]
[364800410,1749245468693,-480.0,0.00028383,5]
[364800411,1749245468703,-480.0,0.00028383,5]
[364800412,1749245468715,-682.68,0.00028383,5]
[364800413,1749245468725,-480.0,0.00028383,5]
[364800414,1749245468736,-607.26,0.00028383,5]
[364800415,1749245468993,-217.752716,0.00028383,5]
[364800416,1749245469014,-7562.75,0.00028383,5]
[364800417,1749245469026,-597.24,0.00028383,5]
[364800418,1749245469035,-3844.59,0.00028383,5]
[364800419,1749245469044,-621.94,0.00028383,5]
[364800420,1749245469054,-480.0,0.00028383,5]
[364800421,1749245469064,-1661.61,0.00028383,5]
[364800422,1749245469074,-672.61,0.00028383,5]
[364800423,1749245469084,-480.0,0.00028383,5]
[364800424,1749245469099,-480.0,0.00028383,5]
[364800425,1749245469110,-2171.5,0.00028383,5]
[364800426,1749245469127,-904.82,0.00028383,5]
[364800427,1749245469137,-487.01,0.00028383,5]
[364800428,1749245469153,-3523.57,0.00028383,5]
[364800429,1749245469163,-1412.37,0.00028383,5]
[364800430,1749245469172,-16871.99,0.00028383,5]
[364800431,1749245469181,-179.546228,0.00028383,5]
[364800432,1749245469191,-590.09,0.00028383,5]
[364800433,1749245469200,-3605.79,0.00028383,5]
[364800434,1749245469210,-1584.5,0.00028383,5]
[364800435,1749245469220,-569.63,0.00028383,5]
[364800436,1749245469230,-1945.39,0.00028383,5]
[364800437,1749245469239,-3465.3,0.00028383,5]
[364800438,1749245469250,-1081.7,0.00028383,5]
[364800439,1749245469260,-2006.64,0.00028383,5]
[364800440,1749245469269,-531.04,0.00028383,5]
[364800441,1749245469279,-607.53,0.00028383,5]
[364800442,1749245469289,-1607.92,0.00028383,5]
[364800443,1749245469299,-480.0,0.00028383,5]
[364800444,1749245469309,-1750.07,0.00028383,5]
[364800445,1749245469319,-1119.57,0.00028383,5]
[364800446,1749245469329,-911.9,0.00028383,5]
[364800447,1749245469339,-480.0,0.00028383,5]
[364800448,1749245469349,-1710.78,0.00028383,5]
[364800449,1749245469358,-689.26,0.00028383,5]
[364800450,1749245469368,-480.0,0.00028383,5]
[364800451,1749245469378,-480.0,0.00028383,5]
[364800452,1749245469389,-1070.37,0.00028383,5]
[364800453,1749245469399,-623.94,0.00028383,5]
[364800454,1749245469408,-1791.7,0.00028383,5]
[364800455,1749245469418,-1965.72,0.00028383,5]
[364800456,1749245469428,-480.0,0.00028383,5]
[364800457,1749245469438,-240.124881,0.00028383,5]
[364800458,1749245469448,-1996.69,0.00028383,5]
[364800459,1749245469457,-3288.44,0.00028383,5]
[364800460,1749245469467,-1032.5,0.00028383,5]
[364800461,1749245469477,-771.7,0.00028383,5]
[364800462,1749245469487,-480.0,0.00028383,5]
[364800463,1749245469496,-1627.97,0.00028383,5]
[364800464,1749245469507,-670.33,0.00028383,5]
[364800465,1749245469517,-575.24,0.00028383,5]
[364800466,1749245469526,-4755.29,0.00028383,5]
[364800467,1749245469536,-2179.19,0.00028383,5]
[364800468,1749245469546,-480.0,0.00028383,5]
[364800469,1749245469556,-1950.69,0.00028383,5]
[364800470,1749245469566,-622.31,0.00028383,5]
[364800471,1749245469576,-888.42,0.00028383,5]
[364800472,1749245469585,-1453.42,0.00028383,5]
[364800473,1749245469595,-2483.76,0.00028383,5]
[364800474,1749245469604,-683.26,0.00028383,5]
[364800475,1749245469613,-323.429583,0.00028383,5]
[364800476,1749245469623,-480.0,0.00028383,5]
[364800477,1749245469632,-747.35,0.00028383,5]
[364800478,1749245469641,-5842.1,0.00028383,5]
[364800479,1749245469651,-5650.54,0.00028383,5]
[364800480,1749245469661,-2077.01,0.00028383,5]
[364800481,1749245469671,-950.27,0.00028383,5]
[364800482,1749245469681,-734.81,0.00028383,5]
[364800483,1749245469691,-480.0,0.00028383,5]
[364800484,1749245469700,-480.0,0.00028383,5]
[364800485,1749245469710,-638.71,0.00028383,5]
[364800486,1749245469719,-958.16,0.00028383,5]
[364800487,1749245469729,-1117.56,0.00028383,5]
[364800488,1749245469739,-3319.06,0.00028383,5]
[364800489,1749245469749,-10869.49,0.00028383,5]
[364800490,1749245469758,-480.0,0.00028383,5]
[364800491,1749245469768,-992.85,0.00028383,5]
[364800492,1749245469777,-530.29,0.00028383,2]
[364800493,1749245469787,-1496.95,0.00028383,5]
[364800494,1749245469797,-516.46,0.00028383,5]
[364800495,1749245469806,-63805.06,0.00028383,5]
[364800496,1749245469816,-480.0,0.00028383,5]
[364800497,1749245469826,-498.71,0.00028383,5]
[364800498,1749245469835,-281.38184134,0.00028399,2]
[364800499,1749245469844,-151.0,0.000284,7]
[364800500,1749245469854,-153.0604,0.000284,7]
[364800501,1749245469863,-151.0,0.000284,7]
[364800502,1749245469873,-204.979544,0.000284,7]
[364800503,1749245469882,-151.0,0.000284,7]
[364800504,1749245469891,-151.0,0.000284,7]
[364800505,1749245469900,-151.0,0.000284,7]
[364800506,1749245469910,-154.977828,0.000284,7]
[364800507,1749245469920,-319.967778,0.000284,7]
[364800508,1749245469929,-319.967778,0.000284,7]
[364800509,1749245469939,-289.34799,0.000284,7]
[364800510,1749245469949,-289.34799,0.000284,7]
[364800511,1749245469958,-151.0,0.000284,7]
[364800512,1749245469967,-150.0,0.00028408,2]
[364800513,1749245469977,-500.0,0.0002841,5]
[364800514,1749245469986,-500.0,0.0002841,5]
[364800515,1749245469996,-438.41801222,0.0002841,5]
[364800516,1749245470005,-500.0,0.0002841,5]
[364800517,1749245470017,-1332.0,0.0002841,5]
[364800518,1749245470027,-448.0,0.0002841,5]
[364800519,1749245470037,-619.80696099,0.0002841,2]
[364800520,1749245470047,-500.0,0.0002841,2]
[364800521,1749245470057,-1966.0,0.0002841,5]
[364800522,1749245470067,-500.0,0.0002841,5]
[364800523,1749245470077,-769.37504606,0.00028411,30]
[364800524,1749245470086,-361.0,0.00028427,5]
[364800525,1749245470096,-2464.02623,0.0002843,2]
[364800526,1749245470105,-500.0,0.00028438,5]
[364800527,1749245470115,-500.0,0.00028438,5]
[364800528,1749245470126,-299.70883138,0.00028438,5]
[364800529,1749245470135,-1332.0,0.00028438,5]
[364800530,1749245470145,-448.0,0.00028438,5]
[364800531,1749245470155,-500.0,0.00028438,2]
[364800532,1749245470165,-1966.0,0.00028438,5]
[364800533,1749245470175,-276.74963658,0.00028438,5]
[364800534,1749245470184,-345.62865551,0.00028465,5]
[364800535,1749245470194,-500.0,0.00028465,5]
[364800536,1749245470204,-1332.0,0.00028465,5]
[364800537,1749245470214,-448.0,0.00028465,5]
[364800538,1749245470224,-500.0,0.00028465,2]
[364800539,1749245470234,-1966.0,0.00028465,5]
[364800540,1749245470245,-1500.0,0.00028468,5]
[364800541,1749245470255,-269.88644533,0.00028468,5]
[364800542,1749245470264,-500.0,0.0002847,2]
[364800543,1749245470274,-150.0,0.00028482,2]
[364800544,1749245470284,-500.0,0.00028492,5]
[364800545,1749245470293,-1332.0,0.00028492,5]
[364800546,1749245470303,-467.0,0.00028492,5]
[364800547,1749245470314,-500.0,0.00028492,2]
[364800548,1749245470324,-1966.0,0.00028492,5]
[364800549,1749245470333,-1000.0,0.0002851,2]
[364800550,1749245470343,-4000.0,0.00028514,4]
[364800551,1749245470353,-500.0,0.0002852,5]
[364800552,1749245470363,-1332.0,0.0002852,5]
[364800553,1749245470373,-467.0,0.0002852,5]
[364800554,1749245470383,-500.0,0.0002852,2]
[364800555,1749245470393,-1966.0,0.0002852,5]
[364800556,1749245470403,-769.37504606,0.00028521,30]
[364800557,1749245470412,-11637.7291305,0.00028528,2]
[364800558,1749245470422,-5932.6744132,0.00028528,2]
[364800559,1749245470432,-150.0,0.00028535,2]
[364800560,1749245470441,-151.0,0.00028547,7]
[364800561,1749245470451,-151.0,0.00028547,7]
[364800562,1749245470461,-480.0,0.00028547,5]
[364800563,1749245470471,-480.0,0.00028547,5]
[364800564,1749245470481,-480.0,0.00028547,5]
[364800565,1749245470491,-651.31,0.00028547,5]
[364800566,1749245470501,-480.0,0.00028547,5]
[364800567,1749245470510,-483.33,0.00028547,5]
[364800568,1749245470520,-538.52,0.00028547,5]
[364800569,1749245470529,-480.0,0.00028547,5]
[364800570,1749245470539,-480.0,0.00028547,2]
[364800571,1749245470548,-480.0,0.00028547,5]
[364800572,1749245470558,-480.0,0.00028547,5]
[364800573,1749245470568,-685.83,0.00028547,5]
[364800574,1749245470577,-480.0,0.00028547,5]
[364800575,1749245470587,-549.23,0.00028547,5]
[364800576,1749245470597,-500.02,0.00028547,5]
[364800577,1749245470606,-619.23,0.00028547,5]
[364800578,1749245470616,-480.0,0.00028547,5]
[364800579,1749245470626,-549.25963049,0.00028547,5]
[364800580,1749245470635,-538.98,0.00028547,5]
[364800581,1749245470645,-480.0,0.00028547,5]
[364800582,1749245470654,-516.51,0.00028547,5]
[364800583,1749245470664,-480.0,0.00028547,5]
[364800584,1749245470674,-480.0,0.00028547,5]
[364800585,1749245470684,-480.0,0.00028547,5]
[364800586,1749245470693,-508.36,0.00028547,5]
[364800587,1749245470703,-480.0,0.00028547,5]
[364800588,1749245470715,-594.92,0.00028547,5]
[364800589,1749245470724,-480.0,0.00028547,5]
[364800590,1749245470736,-655.89,0.00028547,5]